fUSD/lending_fUSD_20260517
["ID","MTS","AMOUNT","RATE_DAILY","PERIOD"]
[422465338,1778969457000,-21897.96645494,0.0003,5]
[422465339,1778969457000,-1083.76873823,0.00030037,2]
[422465336,1778969457000,-1000.0,0.00029995,24]
[422465347,1778969457000,-1922.97,0.00030137,30]
[422465342,1778969457000,-777.12310407,0.000301,2]
[422465352,1778969457000,-550.0,0.00030137,2]
[422465361,1778969457000,-344.0,0.00030137,2]
[422465360,1778969457000,-200.0,0.00030137,2]
[422465362,1778969457000,-526.32527003,0.00030137,30]
[422465384,1778969457000,-309.14468886,0.00030581,7]
[422465385,1778969457000,-159.11707341,0.00030581,7]
[422465387,1778969457000,-156.33367028,0.00030581,7]
[422465386,1778969457000,-158.81822993,0.00030581,7]
[422465392,1778969457000,-430.26,0.00030911,30]
[422465391,1778969457000,-193.99079007,0.00030883,5]
[422465389,1778969457000,-380.73763427,0.0003061,7]
[422465388,1778969457000,-349.76600115,0.00030581,7]
[422465390,1778969457000,-340.32877165,0.00030624,7]
[422465396,1778969457000,-151.0,0.00031,7]
[422465394,1778969457000,-8321.47,0.00031,14]
[422465403,1778969457000,-160.0,0.000311,2]
[422465406,1778969457000,-160.0,0.000311,2]
[422465405,1778969457000,-160.0,0.000311,2]
[422465366,1778969457000,-156.0,0.00030178,30]
[422465393,1778969457000,-1078.25,0.00031,7]
[422465382,1778969457000,-33698.0,0.000304,2]
[422465397,1778969457000,-150.0,0.00031011,2]
[422465371,1778969457000,-376.505144,0.000302,2]
[422465363,1778969457000,-154.0,0.00030171,30]
[422465383,1778969457000,-306.36596259,0.00030581,2]
[422465364,1778969457000,-780.0,0.00030178,30]
[422465373,1778969457000,-151.0,0.00030206,30]
[422465377,1778969457000,-339.28,0.00030298,30]
[422465375,1778969457000,-740.0,0.00030206,30]
[422465380,1778969457000,-163.65,0.00030375,2]
[422465365,1778969457000,-236.0,0.00030178,30]
[422465379,1778969457000,-233.0,0.00030298,30]
[422465370,1778969457000,-404.915176,0.000302,2]
[422465374,1778969457000,-577.0,0.00030206,30]
[422465376,1778969457000,-914.9,0.00030239,2]
[422465369,1778969457000,-152.0,0.00030178,30]
[422465381,1778969457000,-404.07,0.000304,7]
[422465378,1778969457000,-150.0,0.00030298,30]
[422465372,1778969457000,-206.0,0.00030206,30]
[422465494,1778969458000,-496.36294136,0.00032093,7]
[422465491,1778969458000,-152.59631586,0.00032093,7]
[422465493,1778969458000,-232.65099278,0.00032093,2]
[422465489,1778969458000,-415.13710991,0.00032093,7]
[422465487,1778969458000,-222.03387672,0.00032093,7]
[422465490,1778969458000,-253.09871637,0.00032093,7]
[422465486,1778969458000,-204.45489781,0.00032093,7]
[422465484,1778969458000,-371.59053031,0.00032093,7]
[422465492,1778969458000,-333.91511921,0.00032093,7]
[422465485,1778969458000,-412.27096369,0.00032093,7]
[422465488,1778969458000,-334.33741163,0.00032093,7]
[422465496,1778969458000,-182.01166614,0.00032093,7]
[422465505,1778969458000,-263.90649912,0.00032137,2]
[422465497,1778969458000,-214.76054842,0.00032093,7]
[422465499,1778969458000,-761.47526855,0.00032122,7]
[422465508,1778969458000,-780.0,0.00032178,30]
[422465500,1778969458000,-680.65754331,0.00032137,7]
[422465507,1778969458000,-154.0,0.00032171,30]
[422465504,1778969458000,-519.41951183,0.00032137,7]
[422465502,1778969458000,-303.98551273,0.00032137,7]
[422465501,1778969458000,-347.88018718,0.00032137,7]
[422465506,1778969458000,-524.67085707,0.00032137,7]
[422465503,1778969458000,-352.19062219,0.00032137,7]
[422465510,1778969458000,-156.0,0.00032178,30]
[422465495,1778969458000,-699.5320023,0.00032093,7]
[422465498,1778969458000,-404.07,0.000321,7]
[422465472,1778969458000,-339.61857189,0.00032093,7]
[422465460,1778969458000,-578.19433132,0.00032093,7]
[422465475,1778969458000,-440.55108259,0.00032093,7]
[422465521,1778969458000,-151.0,0.00032206,30]
[422465457,1778969458000,-408.96815846,0.00032093,7]
[422465456,1778969458000,-200.0,0.00032055,2]
[422465470,1778969458000,-157.44591693,0.00032093,7]
[422465458,1778969458000,-162.26913068,0.00032093,7]
[422465464,1778969458000,-170.33166223,0.00032093,7]
[422465459,1778969458000,-211.15173831,0.00032093,5]
[422465465,1778969458000,-618.28937773,0.00032093,7]
[422465462,1778969458000,-612.73192518,0.00032093,2]
[422465461,1778969458000,-400.51385687,0.00032093,7]
[422465469,1778969458000,-351.05400467,0.00032093,7]
[422465463,1778969458000,-180.70414806,0.00032093,7]
[422465466,1778969458000,-192.60373668,0.00032093,7]
[422465467,1778969458000,-329.37398885,0.00032093,7]
[422465468,1778969458000,-158.43826638,0.00032093,7]
[422465473,1778969458000,-477.35122024,0.00032093,7]
[422465474,1778969458000,-249.34276348,0.00032093,7]
[422465478,1778969458000,-476.4546898,0.00032093,7]
[422465482,1778969458000,-334.73444718,0.00032093,2]
[422465483,1778969458000,-469.00101083,0.00032093,7]
[422465481,1778969458000,-526.4894096,0.00032093,7]
[422465480,1778969458000,-534.64414511,0.00032093,7]
[422465476,1778969458000,-229.15800551,0.00032093,7]
[422465471,1778969458000,-205.02579286,0.00032093,7]
[422465477,1778969458000,-196.41253023,0.00032093,7]
[422465479,1778969458000,-171.927388,0.00032093,7]
[422465520,1778969458000,-206.0,0.00032206,30]
[422465549,1778969458000,-448.43651,0.00032877,7]
[422465512,1778969458000,-334.0,0.00032178,30]
[422465545,1778969458000,-448.43651,0.00032877,7]
[422465544,1778969458000,-448.43651,0.00032877,7]
[422465543,1778969458000,-448.43651,0.00032877,7]
[422465540,1778969458000,-874.41500288,0.00032698,7]
[422465546,1778969458000,-448.43651,0.00032877,7]
[422465550,1778969458000,-448.43651,0.00032877,7]
[422465551,1778969458000,-448.43651,0.00032877,7]
[422465554,1778969458000,-448.43651,0.00032877,7]
[422465552,1778969458000,-448.43651,0.00032877,7]
[422465553,1778969458000,-448.43651,0.00032877,7]
[422465556,1778969458000,-1486.69,0.00032989,30]
[422465557,1778969458000,-571.588399,0.00033,14]
[422465555,1778969458000,-526.32527003,0.00032877,30]
[422465558,1778969458000,-500.64913942,0.00033,60]
[422465568,1778969458000,-156.0,0.00033178,30]
[422465567,1778969458000,-236.0,0.00033178,30]
[422465562,1778969458000,-204.53,0.00033056,34]
[422465565,1778969458000,-154.0,0.00033171,30]
[422465564,1778969458000,-8321.47,0.000331,14]
[422465561,1778969458000,-3559.519,0.00033056,34]
[422465566,1778969458000,-780.0,0.00033178,30]
[422465560,1778969458000,-350.0,0.00033014,5]
[422465563,1778969458000,-1078.25,0.000331,30]
[422465518,1778969458000,-160.0,0.000322,12]
[422465569,1778969458000,-155.0,0.00033178,30]
[422465542,1778969458000,-679.41,0.00032877,2]
[422465541,1778969458000,-951.84408568,0.00032728,7]
[422465559,1778969458000,-1000.0,0.0003301,8]
[422465538,1778969458000,-765.91490648,0.00032698,2]
[422465519,1778969458000,-160.0,0.000322,12]
[422465539,1778969458000,-772.86172216,0.00032698,7]
[422465517,1778969458000,-206.205718,0.000322,6]
[422465516,1778969458000,-8321.47,0.000322,14]
[422465509,1778969458000,-236.0,0.00032178,30]
[422465514,1778969458000,-150.0,0.000322,2]
[422465515,1778969458000,-1078.25,0.000322,7]
[422465513,1778969458000,-500.0,0.00032185,120]
[422465522,1778969458000,-577.0,0.00032206,30]
[422465524,1778969458000,-914.9,0.0003221,5]
[422465527,1778969458000,-3543.0,0.00032472,2]
[422465526,1778969458000,-625.0,0.00032472,2]
[422465531,1778969458000,-284.289204,0.00032472,7]
[422465525,1778969458000,-150.0,0.00032472,2]
[422465511,1778969458000,-155.0,0.00032178,30]
[422465547,1778969458000,-448.43651,0.00032877,7]
[422465528,1778969458000,-926.0,0.00032472,2]
[422465537,1778969458000,-799.17176466,0.00032698,7]
[422465536,1778969458000,-1434.15,0.000326,7]
[422465535,1778969458000,-150.0,0.00032562,2]
[422465532,1778969458000,-284.289204,0.00032472,7]
[422465548,1778969458000,-448.43651,0.00032877,7]
[422465533,1778969458000,-284.289204,0.00032472,7]
[422465534,1778969458000,-284.289204,0.00032472,7]
[422465523,1778969458000,-740.0,0.00032206,30]
[422465530,1778969458000,-1223.0,0.00032472,2]
[422465529,1778969458000,-150.0,0.00032472,2]
[422465614,1778969459000,-344.0,0.00034247,2]
[422465608,1778969459000,-290.0,0.00034247,2]
[422465611,1778969459000,-150.0,0.00034247,2]
[422465609,1778969459000,-250.0,0.00034247,2]
[422465612,1778969459000,-222.0,0.00034247,2]
[422465600,1778969459000,-740.0,0.00034206,30]
[422465602,1778969459000,-250.0,0.00034247,2]
[422465604,1778969459000,-550.0,0.00034247,2]
[422465601,1778969459000,-250.0,0.00034247,2]
[422465610,1778969459000,-354.0,0.00034247,2]
[422465605,1778969459000,-550.0,0.00034247,2]
[422465607,1778969459000,-200.0,0.00034247,2]
[422465628,1778969459000,-500.0,0.00034392,60]
[422465615,1778969459000,-526.32527003,0.00034247,30]
[422465616,1778969459000,-500.0,0.00034265,3]
[422465618,1778969459000,-210.15008441,0.00034265,3]
[422465617,1778969459000,-500.0,0.00034265,3]
[422465619,1778969459000,-500.0,0.00034285,120]
[422465622,1778969459000,-328.02001126,0.0003435,3]
[422465623,1778969459000,-500.0,0.00034392,60]
[422465620,1778969459000,-1078.25,0.000343,30]
[422465626,1778969459000,-500.0,0.00034392,60]
[422465629,1778969459000,-500.0,0.00034392,60]
[422465630,1778969459000,-500.0,0.00034392,60]
[422465603,1778969459000,-237.0,0.00034247,2]
[422465621,1778969459000,-328.02001125,0.0003435,3]
[422465613,1778969459000,-200.0,0.00034247,2]
[422465606,1778969459000,-433.0,0.00034247,2]
[422465571,1778969459000,-160.0,0.000332,16]
[422465599,1778969459000,-577.0,0.00034206,30]
[422465624,1778969459000,-500.0,0.00034392,60]
[422465570,1778969459000,-334.0,0.00033178,30]
[422465572,1778969459000,-160.0,0.000332,16]
[422465575,1778969459000,-577.0,0.00033206,30]
[422465578,1778969459000,-927.43406659,0.00033605,7]
[422465577,1778969459000,-919.09788777,0.00033605,2]
[422465580,1778969459000,-1142.21290282,0.00033635,7]
[422465579,1778969459000,-1049.29800345,0.00033605,7]
[422465574,1778969459000,-151.0,0.00033206,30]
[422465584,1778969459000,-154.0,0.00034171,30]
[422465576,1778969459000,-740.0,0.00033206,30]
[422465573,1778969459000,-206.0,0.00033206,30]
[422465583,1778969459000,-500.0,0.00034,65]
[422465598,1778969459000,-151.0,0.00034206,30]
[422465581,1778969459000,-404.07,0.000339,30]
[422465582,1778969459000,-350.0,0.00033973,5]
[422465587,1778969459000,-156.0,0.00034178,30]
[422465586,1778969459000,-236.0,0.00034178,30]
[422465588,1778969459000,-155.0,0.00034178,30]
[422465592,1778969459000,-1000.0,0.00034198,9]
[422465590,1778969459000,-914.9,0.00034182,7]
[422465589,1778969459000,-334.0,0.00034178,30]
[422465591,1778969459000,-150.0,0.0003419,2]
[422465595,1778969459000,-160.0,0.000342,21]
[422465593,1778969459000,-8321.47,0.000342,14]
[422465596,1778969459000,-160.0,0.000342,21]
[422465594,1778969459000,-200.0,0.000342,9]
[422465597,1778969459000,-206.0,0.00034206,30]
[422465585,1778969459000,-780.0,0.00034178,30]
[422465625,1778969459000,-500.0,0.00034392,60]
[422465669,1778969459000,-167.32677,0.00035,7]
[422465637,1778969459000,-532.0691179,0.00034392,60]
[422465670,1778969459000,-167.32677,0.00035,7]
[422465662,1778969459000,-161.440842,0.00035,7]
[422465664,1778969459000,-161.440842,0.00035,7]
[422465668,1778969459000,-279.30719,0.00035,7]
[422465658,1778969459000,-151.0,0.00035,7]
[422465667,1778969459000,-279.30719,0.00035,7]
[422465680,1778969459000,-417.0,0.00035049,2]
[422465683,1778969459000,-236.0,0.00035178,30]
[422465671,1778969459000,-167.32677,0.00035,7]
[422465675,1778969459000,-157.278708,0.00035,7]
[422465682,1778969459000,-780.0,0.00035178,30]
[422465673,1778969459000,-1402.46752,0.00035,7]
[422465674,1778969459000,-1402.46752,0.00035,7]
[422465672,1778969459000,-167.32677,0.00035,7]
[422465677,1778969459000,-1402.46752,0.00035,7]
[422465678,1778969459000,-1318.03291128,0.00035012,7]
[422465676,1778969459000,-1402.46752,0.00035,7]
[422465679,1778969459000,-6054.0,0.00035049,2]
[422465681,1778969459000,-154.0,0.00035171,30]
[422465685,1778969459000,-155.0,0.00035178,30]
[422465691,1778969459000,-206.0,0.00035206,30]
[422465686,1778969459000,-334.0,0.00035178,30]
[422465690,1778969459000,-160.0,0.000352,26]
[422465689,1778969459000,-160.0,0.000352,26]
[422465684,1778969459000,-156.0,0.00035178,30]
[422465687,1778969459000,-391.71765849,0.00035196,2]
[422465688,1778969459000,-1500.0,0.000352,7]
[422465663,1778969459000,-161.440842,0.00035,7]
[422465665,1778969459000,-279.30719,0.00035,7]
[422465627,1778969459000,-500.0,0.00034392,60]
[422465661,1778969459000,-161.440842,0.00035,7]
[422465659,1778969459000,-151.0,0.00035,7]
[422465638,1778969459000,-400.0,0.00034481,2]
[422465632,1778969459000,-500.0,0.00034392,60]
[422465635,1778969459000,-500.0,0.00034392,60]
[422465641,1778969459000,-5000.0,0.000345,14]
[422465644,1778969459000,-249.11,0.00034833,30]
[422465636,1778969459000,-500.0,0.00034392,60]
[422465634,1778969459000,-500.0,0.00034392,60]
[422465642,1778969459000,-1500.0,0.00034795,2]
[422465640,1778969459000,-716.13466405,0.00034481,2]
[422465633,1778969459000,-500.0,0.00034392,60]
[422465639,1778969459000,-400.0,0.00034481,2]
[422465631,1778969459000,-500.0,0.00034392,60]
[422465645,1778969459000,-1486.69,0.00034845,60]
[422465643,1778969459000,-238.11,0.000348,20]
[422465648,1778969459000,-1072.28086907,0.00034965,2]
[422465649,1778969459000,-1082.00641102,0.00034965,7]
[422465666,1778969459000,-279.30719,0.00035,7]
[422465656,1778969459000,-151.0,0.00035,7]
[422465646,1778969459000,-436.38967366,0.000349,2]
[422465653,1778969459000,-2193.80924166,0.00035,7]
[422465652,1778969459000,-1950.2891859,0.00035,2]
[422465650,1778969459000,-513.0,0.00035,70]
[422465660,1778969459000,-76437.47559614,0.00035,2]
[422465655,1778969459000,-1000.0,0.00035,90]
[422465651,1778969459000,-172081.98636019,0.00035,4]
[422465654,1778969459000,-151.0,0.00035,7]
[422465647,1778969459000,-350.0,0.00034931,5]
[422465657,1778969459000,-151.0,0.00035,7]
[422465732,1778969460000,-184.204153,0.0003561,7]
[422465738,1778969460000,-2249.581837,0.0003561,7]
[422465733,1778969460000,-448.43651,0.0003561,7]
[422465729,1778969460000,-184.204153,0.0003561,7]
[422465730,1778969460000,-184.204153,0.0003561,7]
[422465728,1778969460000,-627.669364,0.0003561,7]
[422465727,1778969460000,-627.669364,0.0003561,7]
[422465723,1778969460000,-2123.786567,0.0003561,7]
[422465734,1778969460000,-2249.581837,0.0003561,7]
[422465725,1778969460000,-627.669364,0.0003561,7]
[422465735,1778969460000,-448.43651,0.0003561,7]
[422465737,1778969460000,-448.43651,0.0003561,7]
[422465736,1778969460000,-2249.581837,0.0003561,7]
[422465739,1778969460000,-448.43651,0.0003561,7]
[422465752,1778969460000,-164.63041949,0.00035616,2]
[422465742,1778969460000,-157.143938,0.0003561,7]
[422465744,1778969460000,-240.725161,0.0003561,7]
[422465745,1778969460000,-157.143938,0.0003561,7]
[422465741,1778969460000,-157.143938,0.0003561,7]
[422465743,1778969460000,-157.143938,0.0003561,7]
[422465747,1778969460000,-171.679547,0.0003561,7]
[422465746,1778969460000,-240.725161,0.0003561,7]
[422465748,1778969460000,-240.725161,0.0003561,7]
[422465751,1778969460000,-171.679547,0.0003561,7]
[422465755,1778969460000,-151.0,0.00035616,7]
[422465760,1778969460000,-404.07,0.000357,30]
[422465757,1778969460000,-219.92,0.00035626,120]
[422465731,1778969460000,-184.204153,0.0003561,7]
[422465749,1778969460000,-171.679547,0.0003561,7]
[422465740,1778969460000,-2249.581837,0.0003561,7]
[422465726,1778969460000,-627.669364,0.0003561,7]
[422465705,1778969460000,-170786.81018297,0.0003561,2]
[422465712,1778969460000,-305.660067,0.0003561,7]
[422465695,1778969460000,-8321.47,0.000353,14]
[422465696,1778969460000,-162.06610683,0.00035315,120]
[422465758,1778969460000,-500.0,0.00035626,90]
[422465693,1778969460000,-577.0,0.00035206,30]
[422465694,1778969460000,-740.0,0.00035206,30]
[422465697,1778969460000,-1078.25,0.000354,30]
[422465701,1778969460000,-150.0,0.00035472,2]
[422465700,1778969460000,-926.0,0.00035472,2]
[422465699,1778969460000,-3543.0,0.00035472,2]
[422465708,1778969460000,-151.0,0.0003561,7]
[422465704,1778969460000,-1434.15,0.000355,7]
[422465702,1778969460000,-1223.0,0.00035472,2]
[422465698,1778969460000,-625.0,0.00035472,2]
[422465703,1778969460000,-1950.0,0.00035481,5]
[422465706,1778969460000,-4509.00530693,0.0003561,2]
[422465709,1778969460000,-374.778137,0.0003561,7]
[422465707,1778969460000,-374.778137,0.0003561,7]
[422465719,1778969460000,-463.691199,0.0003561,7]
[422465713,1778969460000,-305.660067,0.0003561,7]
[422465710,1778969460000,-374.778137,0.0003561,7]
[422465715,1778969460000,-261.1828,0.0003561,7]
[422465714,1778969460000,-305.660067,0.0003561,7]
[422465722,1778969460000,-2123.786567,0.0003561,7]
[422465717,1778969460000,-463.691199,0.0003561,7]
[422465711,1778969460000,-374.778137,0.0003561,7]
[422465716,1778969460000,-305.660067,0.0003561,7]
[422465721,1778969460000,-2123.786567,0.0003561,7]
[422465718,1778969460000,-463.691199,0.0003561,7]
[422465720,1778969460000,-463.691199,0.0003561,7]
[422465724,1778969460000,-2123.786567,0.0003561,7]
[422465692,1778969460000,-151.0,0.00035206,30]
[422465754,1778969460000,-151.0,0.00035616,7]
[422465756,1778969460000,-679.41,0.00035616,2]
[422465800,1778969460000,-300.0,0.00036397,2]
[422465801,1778969460000,-300.0,0.00036397,2]
[422465802,1778969460000,-300.0,0.00036397,2]
[422465798,1778969460000,-300.0,0.00036397,2]
[422465793,1778969460000,-740.0,0.00036206,30]
[422465795,1778969460000,-300.0,0.00036397,2]
[422465794,1778969460000,-1000.0,0.00036296,76]
[422465796,1778969460000,-300.0,0.00036397,2]
[422465797,1778969460000,-1095.07136273,0.00036397,2]
[422465799,1778969460000,-300.0,0.00036397,2]
[422465807,1778969460000,-300.0,0.00036397,2]
[422465809,1778969460000,-300.0,0.00036397,2]
[422465811,1778969460000,-491.60834316,0.00036397,2]
[422465803,1778969460000,-300.0,0.00036397,2]
[422465792,1778969460000,-577.0,0.00036206,30]
[422465810,1778969460000,-492.84022017,0.00036397,2]
[422465806,1778969460000,-300.0,0.00036397,2]
[422465805,1778969460000,-300.0,0.00036397,2]
[422465814,1778969460000,-300.0,0.00036397,2]
[422465815,1778969460000,-300.0,0.00036397,2]
[422465813,1778969460000,-300.0,0.00036397,2]
[422465808,1778969460000,-300.00000001,0.00036397,2]
[422465804,1778969460000,-300.0,0.00036397,2]
[422465817,1778969460000,-300.0,0.00036397,2]
[422465820,1778969460000,-574.19198391,0.00036397,2]
[422465818,1778969460000,-300.0,0.00036397,2]
[422465819,1778969460000,-300.0,0.00036397,2]
[422465816,1778969460000,-604.63991303,0.00036397,2]
[422465750,1778969460000,-240.725161,0.0003561,7]
[422465822,1778969460000,-313.13873214,0.00036397,2]
[422465812,1778969460000,-300.0,0.00036397,2]
[422465791,1778969460000,-151.0,0.00036206,30]
[422465821,1778969460000,-893.66998664,0.00036397,2]
[422465790,1778969460000,-206.0,0.00036206,30]
[422465789,1778969460000,-160.0,0.000362,31]
[422465753,1778969460000,-151.0,0.00035616,7]
[422465759,1778969460000,-1000.0,0.00035651,100]
[422465763,1778969460000,-150.0,0.00035899,2]
[422465773,1778969460000,-400.0,0.00036048,2]
[422465762,1778969460000,-350.0,0.0003589,5]
[422465774,1778969460000,-914.9,0.00036153,30]
[422465765,1778969460000,-2312.0,0.00035978,11]
[422465769,1778969460000,-1000.0,0.00036048,2]
[422465764,1778969460000,-1000.0,0.00035938,72]
[422465767,1778969460000,-12422.14074617,0.00036,2]
[422465770,1778969460000,-1000.0,0.00036048,2]
[422465771,1778969460000,-400.0,0.00036048,2]
[422465772,1778969460000,-400.0,0.00036048,2]
[422465766,1778969460000,-25074.59174953,0.00036,2]
[422465761,1778969460000,-151.0,0.00035863,14]
[422465775,1778969460000,-5959.0,0.00036164,2]
[422465782,1778969460000,-155.0,0.00036178,30]
[422465785,1778969460000,-1000.0,0.00036198,34]
[422465783,1778969460000,-334.0,0.00036178,30]
[422465784,1778969460000,-288.0,0.00036192,30]
[422465768,1778969460000,-1000.0,0.00036048,2]
[422465779,1778969460000,-780.0,0.00036178,30]
[422465786,1778969460000,-212.94,0.000362,2]
[422465787,1778969460000,-200.0,0.000362,12]
[422465788,1778969460000,-160.0,0.000362,31]
[422465780,1778969460000,-236.0,0.00036178,30]
[422465781,1778969460000,-156.0,0.00036178,30]
[422465778,1778969460000,-154.0,0.00036171,30]
[422465776,1778969460000,-509.0,0.00036164,2]
[422465777,1778969460000,-340.0,0.00036164,2]
[422465859,1778969461000,-300.0,0.00036397,2]
[422465856,1778969461000,-300.0,0.00036397,2]
[422465866,1778969461000,-1127.79186826,0.00036397,2]
[422465865,1778969461000,-300.0,0.00036397,2]
[422465862,1778969461000,-484.23291958,0.00036397,2]
[422465864,1778969461000,-300.0,0.00036397,2]
[422465861,1778969461000,-300.0,0.00036397,2]
[422465867,1778969461000,-300.0,0.00036397,2]
[422465863,1778969461000,-309.92123961,0.00036397,2]
[422465858,1778969461000,-300.0,0.00036397,2]
[422465855,1778969461000,-452.04263183,0.00036397,2]
[422465857,1778969461000,-300.0,0.00036397,2]
[422465860,1778969461000,-300.0,0.00036397,2]
[422465871,1778969461000,-1095.07136273,0.00036397,2]
[422465879,1778969461000,-300.0,0.00036397,2]
[422465873,1778969461000,-300.0,0.00036397,2]
[422465868,1778969461000,-300.0,0.00036397,2]
[422465880,1778969461000,-300.0,0.00036397,2]
[422465872,1778969461000,-300.0,0.00036397,2]
[422465881,1778969461000,-300.0,0.00036397,2]
[422465878,1778969461000,-300.0,0.00036397,2]
[422465870,1778969461000,-300.0,0.00036397,2]
[422465877,1778969461000,-300.0,0.00036397,2]
[422465875,1778969461000,-300.0,0.00036397,2]
[422465874,1778969461000,-300.0,0.00036397,2]
[422465876,1778969461000,-300.0,0.00036397,2]
[422465852,1778969461000,-300.0,0.00036397,2]
[422465869,1778969461000,-300.0,0.00036397,2]
[422465845,1778969461000,-300.0,0.00036397,2]
[422465833,1778969461000,-300.0,0.00036397,2]
[422465847,1778969461000,-300.0,0.00036397,2]
[422465828,1778969461000,-371.18604417,0.00036397,2]
[422465827,1778969461000,-300.66230964,0.00036397,2]
[422465829,1778969461000,-300.0,0.00036397,2]
[422465823,1778969461000,-726.26438584,0.00036397,2]
[422465824,1778969461000,-300.0,0.00036397,2]
[422465826,1778969461000,-300.0,0.00036397,2]
[422465825,1778969461000,-301.8794073,0.00036397,2]
[422465830,1778969461000,-949.2762563,0.00036397,2]
[422465832,1778969461000,-1912.98732614,0.00036397,2]
[422465834,1778969461000,-344.08088588,0.00036397,2]
[422465835,1778969461000,-527.04605611,0.00036397,2]
[422465838,1778969461000,-300.0,0.00036397,2]
[422465841,1778969461000,-300.0,0.00036397,2]
[422465848,1778969461000,-310.99730567,0.00036397,2]
[422465888,1778969461000,-300.0,0.00036397,2]
[422465837,1778969461000,-300.0,0.00036397,2]
[422465839,1778969461000,-1147.52562491,0.00036397,2]
[422465836,1778969461000,-300.0,0.00036397,2]
[422465831,1778969461000,-300.0,0.00036397,2]
[422465842,1778969461000,-864.71533708,0.00036397,2]
[422465854,1778969461000,-300.0,0.00036397,2]
[422465853,1778969461000,-577.38521552,0.00036397,2]
[422465844,1778969461000,-1791.04776837,0.00036397,2]
[422465843,1778969461000,-300.0,0.00036397,2]
[422465849,1778969461000,-300.0,0.00036397,2]
[422465850,1778969461000,-300.0,0.00036397,2]
[422465851,1778969461000,-463.98731895,0.00036397,2]
[422465846,1778969461000,-300.0,0.00036397,2]
[422465840,1778969461000,-309.68315104,0.00036397,2]
[422465886,1778969461000,-300.0,0.00036397,2]
[422465930,1778969461000,-463.98731895,0.00036397,2]
[422465887,1778969461000,-379.15418116,0.00036397,2]
[422465909,1778969461000,-300.0,0.00036397,2]
[422465920,1778969461000,-300.0,0.00036397,2]
[422465921,1778969461000,-864.71533708,0.00036397,2]
[422465924,1778969461000,-300.0,0.00036397,2]
[422465919,1778969461000,-309.68315104,0.00036397,2]
[422465925,1778969461000,-300.0,0.00036397,2]
[422465923,1778969461000,-1791.04776837,0.00036397,2]
[422465922,1778969461000,-300.0,0.00036397,2]
[422465927,1778969461000,-310.99730567,0.00036397,2]
[422465926,1778969461000,-300.0,0.00036397,2]
[422465929,1778969461000,-300.0,0.00036397,2]
[422465928,1778969461000,-300.0,0.00036397,2]
[422465931,1778969461000,-300.0,0.00036397,2]
[422465937,1778969461000,-300.0,0.00036397,2]
[422465932,1778969461000,-577.38521552,0.00036397,2]
[422465936,1778969461000,-300.0,0.00036397,2]
[422465933,1778969461000,-300.0,0.00036397,2]
[422465940,1778969461000,-300.0,0.00036397,2]
[422465938,1778969461000,-300.0,0.00036397,2]
[422465935,1778969461000,-300.0,0.00036397,2]
[422465934,1778969461000,-452.04263183,0.00036397,2]
[422465941,1778969461000,-484.23291958,0.00036397,2]
[422465945,1778969461000,-238.11,0.000366,120]
[422465942,1778969461000,-309.92123961,0.00036397,2]
[422465943,1778969461000,-300.0,0.00036397,2]
[422465944,1778969461000,-8085.63612352,0.000365,10]